[Event "EYCC Girls-U10 2019"]
[Site "Bratislava"]
[Date "2019.08.07"]
[Round "6.6"]
[White "Mgeladze, Kesaria"]
[Black "Smietanska, Wiktoria"]
[Result "0-1"]
[ECO "B14"]
[WhiteElo "1294"]
[BlackElo "1547"]
[Annotator "NA"]
[PlyCount "133"]
[EventDate "2019.08.02"]
[EventType "swiss"]
[EventCountry "SVK"]
[SourceTitle "playchess.com"]
[Source "ChessBase"]
[SourceQuality "1"]
[TimeControl "40/5400+30:1800+30"]

1. e4 {[%emt 0:00:00]} c6 {[%emt 0:00:00]} 2. d4 {[%emt 0:00:00]} d5 {[%emt 0:00:00]} 3. exd5 {[%emt 0:00:00]} cxd5 {[%emt 0:00:00]} 4. c4 {[%emt 0:00:00]} Nf6 {[%emt 0:00:27]} 5. Nc3 {[%emt 0:00:00]} g6 {[%emt 0:00:45]} 6. cxd5 {[%emt 0:00:07]} Bg7 {[%emt 0:03:29]} 7. Bc4 {[%emt 0:00:09]} O-O {[%emt 0:03:04]} 8. Nge2 {[%emt 0:00:13]} b6 {[%emt 0:03:55]} 9. O-O {[%emt 0:00:44]} Bb7 {[%emt 0:04:32]} 10. Nf4 {[%emt 0:02:19]} Na6 {[%emt 0:08:41]} 11. Re1 {[%emt 0:01:23]} Nc7 {[%emt 0:04:36]} 12. Qb3 {[%emt 0:03:11]} Qd6 {[%emt 0:05:00]} 13. Nd3 {[%emt 0:57:25]} Bxd5 {[%emt 0:24:20]} 14. Bf4 {[%emt 0:00:45]} Qc6 {[%emt 0:04:09]} 15. Nb4 {[%emt 0:06:01]} Qxc4 {[%emt 0:01:36]} 16. Nbxd5 {[%emt 0:00:45]} Qxb3 {[%emt 0:02:14]} 17. Nxe7+ {[%emt 0:00:09]} Kh8 {[%emt 0:00:13]} 18. axb3 {[%emt 0:00:11]} Ne6 {[%emt 0:01:35]} 19. Be5 {[%emt 0:00:57]} Rfd8 {[%emt 0:07:38]} 20. Nc6 {[%emt 0:01:34]} Rd7 {[%emt 0:00:39]} 21. Nb5 {[%emt 0:02:32]} a6 {[%emt 0:02:21]} 22. Nd6 {[%emt 0:00:24]} Nd5 {[%emt 0:02:07]} 23. b4 {[%emt 0:02:33]} Kg8 {[%emt 0:02:25]} 24. Red1 {[%emt 0:03:48]} f6 {[%emt 0:01:32]} 25. Bg3 {[%emt 0:00:37]} Bf8 {[%emt 0:02:24]} 26. Ne4 {[%emt 0:07:19]} f5 {[%emt 0:02:05]} 27. Nc3 {[%emt 0:00:36]} f4 {[%emt 0:03:01]} 28. Re1 {[%emt 0:04:34]} Re8 {[%emt 0:05:02]} 29. Nxd5 {[%emt 0:00:20]} Rxd5 {[%emt 0:00:07]} 30. Bxf4 {[%emt 0:00:05]} Kf7 {[%emt 0:01:19]} 31. Be3 {[%emt 0:01:13]} Rc8 {[%emt 0:00:58]} 32. Ne5+ {[%emt 0:00:17]} Kf6 {[%emt 0:00:38]} 33. Nf3 {[%emt 0:00:32]} Bxb4 {[%emt 0:00:17]} 34. Red1 {[%emt 0:00:19]} a5 {[%emt 0:00:25]} 35. Kf1 {[%emt 0:01:36]} Rc2 {[%emt 0:00:25]} 36. Rab1 {[%emt 0:00:21]} b5 {[%emt 0:00:35]} 37. Ne5 {[%emt 0:01:05]} a4 {[%emt 0:01:53]} 38. Nd3 {[%emt 0:00:32]} Ba5 {[%emt 0:00:54]} 39. Nc5 {[%emt 0:01:10]} Nxc5 {[%emt 0:01:28]} 40. dxc5 {[%emt 0:00:00]} Ke6 {[%emt 0:00:00]} 41. Rxd5 {[%emt 0:03:28]} Kxd5 {[%emt 0:01:37]} 42. Rd1+ {[%emt 0:00:08]} Kc4 {[%emt 0:07:25]} 43. Bd4 {[%emt 0:01:04]} Bd2 {[%emt 0:02:59]} 44. Bg7 {[%emt 0:03:48]} Kxc5 {[%emt 0:00:53]} 45. g4 {[%emt 0:01:18]} g5 {[%emt 0:02:51]} 46. Kg2 {[%emt 0:00:11]} Kc4 {[%emt 0:01:36]} 47. Kf3 {[%emt 0:00:10]} b4 {[%emt 0:05:28]} 48. Ke4 {[%emt 0:00:37]} a3 {[%emt 0:01:16]} 49. bxa3 {[%emt 0:00:05]} bxa3 {[%emt 0:00:09]} 50. f3 {[%emt 0:00:24]} a2 {[%emt 0:00:48]} 51. Kf5 {[%emt 0:00:27]} Kd3 {[%emt 0:01:24]} 52. Ra1 {[%emt 0:00:42]} Rc5+ {[%emt 0:02:51]} 53. Ke6 {[%emt 0:00:14]} Ra5 {[%emt 0:00:18]} 54. Kf7 {[%emt 0:00:22]} Kc2 {[%emt 0:01:49]} 55. Kg8 {[%emt 0:00:20]} Ra7 {[%emt 0:02:47]} 56. Bf6 {[%emt 0:00:13]} h6 {[%emt 0:00:47]} 57. Kf8 {[%emt 0:00:30]} Bc3 {[%emt 0:00:35]} 58. Bxc3 {[%emt 0:00:19]} Kxc3 {[%emt 0:00:07]} 59. Kg8 {[%emt 0:00:19]} Kb2 {[%emt 0:00:10]} 60. Rxa2+ {[%emt 0:00:21]} Kxa2 {[%emt 0:00:06]} 61. h3 {[%emt 0:01:08]} Kb3 {[%emt 0:00:19]} 62. Kh8 {[%emt 0:00:09]} Kc4 {[%emt 0:00:05]} 63. Kg8 {[%emt 0:00:05]} Kd5 {[%emt 0:00:06]} 64. Kh8 {[%emt 0:00:05]} Ke6 {[%emt 0:00:05]} 65. Kg8 {[%emt 0:00:05]} Kf6 {[%emt 0:00:09]} 66. Kh8 {[%emt 0:00:02]} Kg6 {[%emt 0:00:06]} 67. f4 0-1

[Event "EYCC Girls-U10 2019"]
[Site "Bratislava"]
[Date "2019.08.07"]
[Round "6.7"]
[White "Seyhan, Pelin"]
[Black "Sidorenja, Milena"]
[Result "0-1"]
[ECO "A01"]
[WhiteElo "1333"]
[BlackElo "1573"]
[Annotator "NA"]
[PlyCount "78"]
[EventDate "2019.08.02"]
[EventType "swiss"]
[EventCountry "SVK"]
[SourceTitle "playchess.com"]
[Source "ChessBase"]
[SourceQuality "1"]
[TimeControl "40/5400+30:1800+30"]

1. b3 d5 2. e4 d4 3. Bb2 c5 4. Nf3 a6 5. g3 Bg4 6. Bg2 Nc6 7. h3 Bh5 8. d3 e6 9. Nbd2 Bd6 10. Nc4 Bc7 11. g4 Bg6 12. a3 Nge7 13. Qd2 b5 14. Qg5 bxc4 15. Qxc5 cxd3 16. cxd3 Bb6 17. Qg5 O-O 18. h4 h6 19. Qf4 Bh7 20. h5 f5 21. gxf5 exf5 22. exf5 Rxf5 23. Qg3 Bc7 24. Qg4 Rf4 25. Qe6+ Kh8 26. Nh4 Qf8 27. Bxc6 Nxc6 28. Qxc6 Re8+ 29. Kd1 Rxf2 30. Bxd4 Qe7 31. Qxe8+ Qxe8 32. Bxf2 Qxh5+ 33. Kd2 Qd5 34. d4 Qxb3 35. Be3 Qc2+ 36. Ke1 Bd3 37. Ng6+ Kh7 38. Nf8+ Kg8 39. Bd2 Bg3# 0-1

[Event "EYCC Girls-U10 2019"]
[Site "Bratislava"]
[Date "2019.08.07"]
[Round "6.8"]
[White "Kirtadze, Anastasia"]
[Black "Sosovickova, Martina"]
[Result "1-0"]
[ECO "E06"]
[WhiteElo "1532"]
[BlackElo "1200"]
[Annotator "NA"]
[PlyCount "119"]
[EventDate "2019.08.02"]
[EventType "swiss"]
[EventCountry "SVK"]
[SourceTitle "playchess.com"]
[Source "ChessBase"]
[SourceQuality "1"]
[TimeControl "40/5400+30:1800+30"]

1. d4 d5 2. c4 e6 3. g3 Nf6 4. Bg2 Be7 5. Nf3 O-O 6. O-O dxc4 7. Nbd2 b5 8. a4 c6 9. Ne5 Nd5 10. Ne4 Bb7 11. Nc3 Nxc3 12. bxc3 Qc8 13. Nf3 f6 14. e4 Rd8 15. Qe2 a6 16. Bh3 Kh8 17. Bf4 Re8 18. Rfd1 Bf8 19. e5 f5 20. Nh4 Qd7 21. Qh5 Kg8 22. Nxf5 g6 23. Nh6+ Bxh6 24. Qxh6 Qf7 25. Bg2 Qc7 26. a5 Nd7 27. Qg5 Qd8 28. Qg4 Qe7 29. Bh6 Qf7 30. Be4 Kh8 31. Re1 Rab8 32. Bf4 c5 33. Bxb7 Rxb7 34. Qf3 Rc7 35. Qe2 Rcc8 36. Be3 Rf8 37. f4 cxd4 38. Bxd4 Nc5 39. Bxc5 Rxc5 40. Rad1 Rcc8 41. Qe4 Rfd8 42. Rd6 Ra8 43. Qd4 Re8 44. Rd7 Qf8 45. Rd1 Rec8 46. Rd6 Qf5 47. Rd7 Re8 48. Rc7 Qf8 49. Rd7 Qf5 50. Kg2 Rec8 51. Rb7 Qf8 52. Qd7 Qg8 53. Qe7 Rf8 54. Rdd7 Rf5 55. Qd6 h5 56. Qc6 Raf8 57. Qc7 R5f7 58. Rxf7 Rxf7 59. Qxf7 Qxf7 60. Rxf7 1-0

[Event "EYCC Girls-U10 2019"]
[Site "Bratislava"]
[Date "2019.08.07"]
[Round "6.9"]
[White "Artissi, Sabina"]
[Black "Zavivaeva, Evelina"]
[Result "0-1"]
[ECO "D37"]
[WhiteElo "1419"]
[BlackElo "1302"]
[Annotator "NA"]
[PlyCount "50"]
[EventDate "2019.08.02"]
[EventType "swiss"]
[EventCountry "SVK"]
[SourceTitle "playchess.com"]
[Source "ChessBase"]
[SourceQuality "1"]
[TimeControl "40/5400+30:1800+30"]

1. Nf3 {[%emt 0:00:00]} d5 {[%emt 0:00:00]} 2. d4 {[%emt 0:00:00]} Nf6 {[%emt 0:00:00]} 3. c4 {[%emt 0:00:00]} e6 {[%emt 0:00:00]} 4. Nc3 {[%emt 0:00:05]} Be7 {[%emt 0:00:02]} 5. Bf4 {[%emt 0:00:08]} O-O {[%emt 0:00:25]} 6. e3 {[%emt 0:00:05]} Nbd7 {[%emt 0:00:11]} 7. Bd3 {[%emt 0:02:02]} dxc4 {[%emt 0:00:12]} 8. Bxc4 {[%emt 0:00:06]} b6 {[%emt 0:00:04]} 9. Nb5 {[%emt 0:35:27]} Bb4+ {[%emt 0:02:52]} 10. Nd2 {[%emt 0:00:29]} Ne4 {[%emt 0:01:56]} 11. Nxc7 {[%emt 0:12:07]} Nxd2 {[%emt 0:02:34]} 12. Qa4 {[%emt 0:02:05]} a5 {[%emt 0:19:58]} 13. a3 {[%emt 0:00:21]} Nxc4+ {[%emt 0:00:09]} 14. axb4 {[%emt 0:00:14]} e5 {[%emt 0:01:48]} 15. Nxa8 {[%emt 0:00:42]} exf4 {[%emt 0:02:00]} 16. Qc6 {[%emt 0:01:47]} Bb7 {[%emt 0:07:53]} 17. Qxb7 {[%emt 0:00:34]} Qxa8 {[%emt 0:00:30]} 18. Qxd7 {[%emt 0:01:19]} Qxg2 {[%emt 0:01:46]} 19. Rf1 {[%emt 0:01:51]} fxe3 {[%emt 0:03:28]} 20. Ke2 {[%emt 0:01:56]} exf2 {[%emt 0:00:30]} 21. Kd3 b5 {[%emt 0:18:34]} 22. Qxb5 {[%emt 0:10:56]} Qf3+ {[%emt 0:03:43]} 23. Kc2 {[%emt 0:01:57]} Rc8 {[%emt 0:12:43]} 24. Kb1 {[%emt 0:00:30]} Nd2+ {[%emt 0:00:10]} 25. Ka2 {[%emt 0:00:16]} Qb3# {[%emt 0:00:10]} 0-1

[Event "EYCC Girls-U10 2019"]
[Site "Bratislava"]
[Date "2019.08.07"]
[Round "6.10"]
[White "Bendik, Margarita"]
[Black "Bat, Anu"]
[Result "1-0"]
[ECO "C60"]
[WhiteElo "1188"]
[BlackElo "1457"]
[Annotator "NA"]
[PlyCount "65"]
[EventDate "2019.08.02"]
[EventType "swiss"]
[EventCountry "SVK"]
[SourceTitle "playchess.com"]
[Source "ChessBase"]
[SourceQuality "1"]
[TimeControl "40/5400+30:1800+30"]

1. e4 {[%emt 0:00:00]} e5 {[%emt 0:00:00]} 2. Nf3 {[%emt 0:00:00]} Nc6 {[%emt 0:00:00]} 3. Bb5 {[%emt 0:00:20]} Nge7 {[%emt 0:00:10]} 4. d3 {[%emt 0:07:16]} a6 {[%emt 0:03:27]} 5. Bc4 {[%emt 0:00:49]} g6 {[%emt 0:03:48]} 6. Ng5 {[%emt 0:04:11]} d5 {[%emt 0:00:50]} 7. exd5 {[%emt 0:01:14]} Nxd5 {[%emt 0:00:31]} 8. Qf3 {[%emt 0:01:52]} Be6 {[%emt 0:01:27]} 9. Nxe6 {[%emt 0:03:19]} fxe6 {[%emt 0:00:10]} 10. c3 {[%emt 0:07:02]} Bg7 {[%emt 0:01:04]} 11. O-O {[%emt 0:00:56]} Qd7 {[%emt 0:01:13]} 12. Nd2 {[%emt 0:02:12]} O-O-O {[%emt 0:00:36]} 13. Ne4 {[%emt 0:00:57]} Rdf8 {[%emt 0:01:26]} 14. Qh3 {[%emt 0:00:50]} Re8 {[%emt 0:04:30]} 15. a4 {[%emt 0:01:07]} Na5 {[%emt 0:06:37]} 16. Rd1 {[%emt 0:06:22]} h6 {[%emt 0:07:40]} 17. b4 {[%emt 0:04:13]} Nc6 {[%emt 0:01:06]} 18. b5 {[%emt 0:01:07]} Nb8 {[%emt 0:01:06]} 19. Ba3 {[%emt 0:04:09]} a5 {[%emt 0:02:34]} 20. Nc5 {[%emt 0:01:19]} Qd6 {[%emt 0:05:27]} 21. Nxb7 {[%emt 0:04:05]} Qd7 {[%emt 0:04:52]} 22. Nc5 {[%emt 0:00:52]} Nf4 {[%emt 0:02:07]} 23. Qf3 {[%emt 0:00:35]} Qf7 {[%emt 0:04:25]} 24. Qb7+ {[%emt 0:00:27]} Kd8 {[%emt 0:00:17]} 25. Qxb8+ {[%emt 0:00:37]} Ke7 {[%emt 0:00:26]} 26. Na6+ {[%emt 0:00:17]} Kf6 {[%emt 0:00:46]} 27. Qxc7 {[%emt 0:00:48]} Qg8 {[%emt 0:01:10]} 28. Nc5 {[%emt 0:04:50]} Ne2+ {[%emt 0:04:51]} 29. Kf1 {[%emt 0:01:06]} Nxc3 {[%emt 0:02:48]} 30. Re1 {[%emt 0:01:03]} Rc8 {[%emt 0:02:15]} 31. Qxe5+ {[%emt 0:00:30]} Ke7 {[%emt 0:01:13]} 32. Nxe6+ {[%emt 0:00:37]} Ke8 {[%emt 0:01:25]} 33. Nxg7+ {[%emt 0:00:23]} 1-0

[Event "EYCC Girls-U10 2019"]
[Site "Bratislava"]
[Date "2019.08.07"]
[Round "6.11"]
[White "Toth, Lili"]
[Black "Salmina, Veronika"]
[Result "1-0"]
[ECO "E95"]
[WhiteElo "2199"]
[BlackElo "1335"]
[Annotator "NA"]
[PlyCount "143"]
[EventDate "2019.08.02"]
[EventType "swiss"]
[EventCountry "SVK"]
[SourceTitle "playchess.com"]
[Source "ChessBase"]
[SourceQuality "1"]
[TimeControl "40/5400+30:1800+30"]

1. d4 {[%emt 0:00:00]} Nf6 {[%emt 0:00:00]} 2. c4 {[%emt 0:00:00]} g6 {[%emt 0:00:00]} 3. Nc3 {[%emt 0:00:29]} Bg7 {[%emt 0:01:15]} 4. e4 {[%emt 0:01:12]} d6 {[%emt 0:01:29]} 5. Be2 {[%emt 0:01:35]} O-O {[%emt 0:01:35]} 6. Nf3 {[%emt 0:01:15]} Nbd7 {[%emt 0:02:08]} 7. O-O {[%emt 0:02:42]} e5 {[%emt 0:01:45]} 8. Re1 {[%emt 0:03:33]} exd4 {[%emt 0:03:10]} 9. Nxd4 {[%emt 0:00:28]} Nc5 {[%emt 0:02:18]} 10. f3 {[%emt 0:03:40]} a5 {[%emt 0:04:57]} 11. Be3 {[%emt 0:07:50]} Nfd7 {[%emt 0:10:32]} 12. Qc2 {[%emt 0:04:27]} Ne6 {[%emt 0:09:29]} 13. Rad1 {[%emt 0:02:53]} Nxd4 {[%emt 0:02:27]} 14. Bxd4 {[%emt 0:00:20]} Bxd4+ {[%emt 0:02:25]} 15. Rxd4 {[%emt 0:00:13]} f5 {[%emt 0:02:50]} 16. exf5 {[%emt 0:14:41]} Qf6 {[%emt 0:04:36]} 17. Rdd1 {[%emt 0:01:06]} Qxf5 {[%emt 0:01:07]} 18. Qxf5 {[%emt 0:00:53]} gxf5 {[%emt 0:01:17]} 19. Nd5 {[%emt 0:00:45]} c6 {[%emt 0:01:45]} 20. Ne7+ {[%emt 0:01:06]} Kg7 {[%emt 0:01:24]} 21. Nxc8 {[%emt 0:03:59]} Raxc8 {[%emt 0:01:27]} 22. Rxd6 {[%emt 0:01:10]} Nc5 {[%emt 0:02:25]} 23. Bd3 {[%emt 0:04:46]} Nxd3 {[%emt 0:03:49]} 24. Rxd3 {[%emt 0:00:18]} Rf7 {[%emt 0:01:26]} 25. c5 {[%emt 0:04:00]} Rcc7 {[%emt 0:04:15]} 26. Kf2 {[%emt 0:07:20]} Rcd7 {[%emt 0:05:11]} 27. Red1 {[%emt 0:00:30]} Rxd3 {[%emt 0:01:25]} 28. Rxd3 {[%emt 0:00:05]} Re7 {[%emt 0:01:14]} 29. Ra3 {[%emt 0:07:51]} Rd7 {[%emt 0:05:19]} 30. b3 {[%emt 0:01:22]} f4 {[%emt 0:01:58]} 31. g3 {[%emt 0:02:09]} Rd2+ {[%emt 0:01:27]} 32. Kg1 {[%emt 0:00:19]} Rd1+ {[%emt 0:04:05]} 33. Kg2 {[%emt 0:00:07]} Rd2+ {[%emt 0:00:13]} 34. Kh3 {[%emt 0:00:08]} fxg3 {[%emt 0:00:23]} 35. hxg3 {[%emt 0:00:16]} Kg6 {[%emt 0:00:12]} 36. g4 {[%emt 0:02:46]} Rd3 {[%emt 0:01:03]} 37. Kg3 {[%emt 0:00:14]} Rd5 {[%emt 0:00:17]} 38. Rxa5 {[%emt 0:00:48]} b6 {[%emt 0:00:29]} 39. Ra6 {[%emt 0:00:16]} Rxc5 {[%emt 0:00:22]} 40. Rxb6 {[%emt 0:00:00]} Kg5 {[%emt 0:00:00]} 41. Rb7 {[%emt 0:01:29]} h5 {[%emt 0:01:08]} 42. gxh5 {[%emt 0:01:24]} Kxh5 {[%emt 0:00:07]} 43. Rh7+ {[%emt 0:00:29]} Kg6 {[%emt 0:00:14]} 44. Rh4 {[%emt 0:00:21]} Kg5 {[%emt 0:00:55]} 45. Rc4 {[%emt 0:00:54]} Ra5 {[%emt 0:00:35]} 46. a4 {[%emt 0:00:38]} c5 {[%emt 0:00:08]} 47. f4+ {[%emt 0:00:38]} Kf5 {[%emt 0:00:21]} 48. Kf3 {[%emt 0:00:07]} Ke6 {[%emt 0:00:16]} 49. Ke4 {[%emt 0:00:23]} Kd6 {[%emt 0:00:16]} 50. f5 {[%emt 0:00:08]} Ra7 {[%emt 0:00:23]} 51. f6 {[%emt 0:01:45]} Ke6 {[%emt 0:00:42]} 52. Rxc5 {[%emt 0:00:08]} Kxf6 {[%emt 0:00:14]} 53. Rc6+ {[%emt 0:01:32]} Ke7 {[%emt 0:00:07]} 54. Rh6 {[%emt 0:02:05]} Ra5 {[%emt 0:01:22]} 55. Rb6 {[%emt 0:00:36]} Kd7 {[%emt 0:00:08]} 56. Kd4 {[%emt 0:00:18]} Kc7 {[%emt 0:00:13]} 57. Rb5 {[%emt 0:02:52]} Ra6 {[%emt 0:01:33]} 58. Kc5 {[%emt 0:01:56]} Rc6+ {[%emt 0:00:13]} 59. Kb4 {[%emt 0:00:09]} Ra6 {[%emt 0:00:37]} 60. a5 {[%emt 0:00:59]} Kc6 {[%emt 0:00:21]} 61. Ka4 {[%emt 0:00:59]} Kc7 {[%emt 0:00:50]} 62. b4 {[%emt 0:02:20]} Kc6 {[%emt 0:01:10]} 63. Rh5 {[%emt 0:00:13]} Kb7 {[%emt 0:00:22]} 64. Rh7+ {[%emt 0:00:32]} Kb8 {[%emt 0:00:53]} 65. b5 {[%emt 0:00:13]} Rg6 {[%emt 0:00:14]} 66. a6 {[%emt 0:00:22]} Rg8 {[%emt 0:00:21]} 67. b6 {[%emt 0:04:40]} Rc8 {[%emt 0:01:27]} 68. a7+ {[%emt 0:00:58]} Ka8 {[%emt 0:00:12]} 69. b7+ {[%emt 0:00:06]} Kxa7 {[%emt 0:00:09]} 70. bxc8=Q+ {[%emt 0:00:14]} Kb6 {[%emt 0:00:07]} 71. Qc7+ {[%emt 0:00:28]} Ka6 {[%emt 0:00:07]} 72. Qa7# {[%emt 0:00:06]} 1-0

[Event "EYCC Girls-U10 2019"]
[Site "Bratislava"]
[Date "2019.08.07"]
[Round "6.12"]
[White "Ismayilova, Khanim"]
[Black "Arzur, Maia"]
[Result "0-1"]
[ECO "D00"]
[WhiteElo "1265"]
[BlackElo "1507"]
[Annotator "NA"]
[PlyCount "120"]
[EventDate "2019.08.02"]
[EventType "swiss"]
[EventCountry "SVK"]
[SourceTitle "playchess.com"]
[Source "ChessBase"]
[SourceQuality "1"]
[TimeControl "40/5400+30:1800+30"]

1. d4 {[%emt 0:00:00]} d5 {[%emt 0:00:00]} 2. Bf4 {[%emt 0:00:00]} Nc6 {[%emt 0:00:14]} 3. Nf3 {[%emt 0:00:53]} Nf6 {[%emt 0:00:54]} 4. e3 {[%emt 0:00:19]} a6 {[%emt 0:01:03]} 5. c3 {[%emt 0:05:16]} Bf5 {[%emt 0:01:46]} 6. Bd3 {[%emt 0:01:01]} Bg6 {[%emt 0:00:54]} 7. Bc2 {[%emt 0:02:48]} e6 {[%emt 0:01:57]} 8. Nbd2 {[%emt 0:00:20]} Bd6 {[%emt 0:01:12]} 9. Ne5 {[%emt 0:00:20]} Bxe5 {[%emt 0:02:19]} 10. Bxe5 {[%emt 0:02:32]} Nxe5 {[%emt 0:03:39]} 11. dxe5 {[%emt 0:00:01]} Nd7 {[%emt 0:00:11]} 12. Nf3 {[%emt 0:00:43]} Bh5 {[%emt 0:01:09]} 13. Qd4 {[%emt 0:01:02]} c5 {[%emt 0:01:24]} 14. Qf4 {[%emt 0:00:24]} Bxf3 {[%emt 0:02:44]} 15. gxf3 {[%emt 0:00:10]} Qc7 {[%emt 0:00:28]} 16. Rg1 {[%emt 0:06:24]} g6 {[%emt 0:03:28]} 17. O-O-O {[%emt 0:06:49]} Qxe5 {[%emt 0:02:08]} 18. Qh4 {[%emt 0:00:57]} Qf6 {[%emt 0:06:00]} 19. Qg3 {[%emt 0:05:21]} O-O-O {[%emt 0:01:36]} 20. e4 {[%emt 0:01:17]} Nb6 {[%emt 0:05:10]} 21. e5 {[%emt 0:06:48]} Qe7 {[%emt 0:01:29]} 22. f4 {[%emt 0:01:11]} Nd7 {[%emt 0:05:40]} 23. Rge1 {[%emt 0:04:25]} c4 {[%emt 0:04:51]} 24. h4 {[%emt 0:05:47]} h5 {[%emt 0:05:29]} 25. Ba4 {[%emt 0:02:16]} b5 {[%emt 0:01:34]} 26. Bc2 {[%emt 0:02:03]} a5 {[%emt 0:01:24]} 27. Rh1 {[%emt 0:01:27]} Rhg8 {[%emt 0:03:45]} 28. Qe3 {[%emt 0:02:47]} Qc5 {[%emt 0:00:50]} 29. Rhg1 {[%emt 0:02:44]} b4 {[%emt 0:02:01]} 30. Ba4 {[%emt 0:10:50]} Qxe3+ {[%emt 0:02:14]} 31. fxe3 {[%emt 0:00:46]} Nc5 {[%emt 0:00:10]} 32. Bc2 {[%emt 0:00:23]} Kc7 {[%emt 0:01:35]} 33. Kd2 {[%emt 0:01:03]} Rb8 34. Rb1 {[%emt 0:01:16]} Kd7 {[%emt 0:03:33]} 35. Rgc1 {[%emt 0:07:04]} b3 {[%emt 0:03:54]} 36. axb3 {[%emt 0:00:31]} Nxb3+ {[%emt 0:00:09]} 37. Bxb3 {[%emt 0:00:02]} Rxb3 {[%emt 0:00:13]} 38. Rc2 {[%emt 0:00:47]} Ke7 {[%emt 0:01:17]} 39. Ra1 {[%emt 0:00:32]} Ra8 {[%emt 0:01:30]} 40. Ra4 {[%emt 0:00:00]} Rab8 {[%emt 0:00:00]} 41. Rxa5 {[%emt 0:03:56]} Rxb2 {[%emt 0:02:03]} 42. Ra1 {[%emt 0:00:51]} Rb1 {[%emt 0:00:45]} 43. Rxb1 {[%emt 0:00:05]} Rxb1 {[%emt 0:00:11]} 44. Rc1 {[%emt 0:00:09]} Rxc1 {[%emt 0:03:17]} 45. Kxc1 {[%emt 0:00:01]} f6 {[%emt 0:00:10]} 46. Kd2 {[%emt 0:00:05]} fxe5 {[%emt 0:00:12]} 47. fxe5 {[%emt 0:00:01]} Kf7 {[%emt 0:00:51]} 48. Ke2 {[%emt 0:00:11]} g5 {[%emt 0:00:34]} 49. hxg5 {[%emt 0:00:06]} Kg6 {[%emt 0:00:05]} 50. Kf3 {[%emt 0:00:05]} Kxg5 {[%emt 0:00:17]} 51. e4 {[%emt 0:01:18]} dxe4+ {[%emt 0:01:26]} 52. Kxe4 {[%emt 0:00:03]} h4 {[%emt 0:00:10]} 53. Kf3 {[%emt 0:00:04]} Kf5 {[%emt 0:00:32]} 54. Kg2 {[%emt 0:00:07]} Kxe5 {[%emt 0:00:09]} 55. Kh3 {[%emt 0:00:03]} Ke4 {[%emt 0:00:12]} 56. Kxh4 {[%emt 0:00:05]} Kd3 {[%emt 0:00:22]} 57. Kg3 {[%emt 0:00:05]} Kxc3 {[%emt 0:00:07]} 58. Kf3 {[%emt 0:00:03]} Kd2 {[%emt 0:00:16]} 59. Kf2 {[%emt 0:00:08]} c3 {[%emt 0:00:06]} 60. Kf3 {[%emt 0:00:04]} c2 {[%emt 0:00:07]} 0-1

[Event "EYCC Girls-U10 2019"]
[Site "Bratislava"]
[Date "2019.08.07"]
[Round "6.13"]
[White "Bagas, Ana"]
[Black "Zadrapova, Amalie"]
[Result "0-1"]
[ECO "B26"]
[WhiteElo "1442"]
[BlackElo "1248"]
[Annotator "NA"]
[PlyCount "64"]
[EventDate "2019.08.02"]
[EventType "swiss"]
[EventCountry "SVK"]
[SourceTitle "playchess.com"]
[Source "ChessBase"]
[SourceQuality "1"]
[TimeControl "40/5400+30:1800+30"]

1. e4 {[%emt 0:00:00]} c5 {[%emt 0:00:00]} 2. Nc3 {[%emt 0:00:00]} d6 {[%emt 0:00:00]} 3. g3 {[%emt 0:00:09]} Nc6 {[%emt 0:00:21]} 4. Bg2 {[%emt 0:00:14]} g6 {[%emt 0:00:21]} 5. d3 {[%emt 0:00:18]} Bg7 {[%emt 0:00:13]} 6. Be3 {[%emt 0:00:33]} e6 {[%emt 0:00:21]} 7. Qd2 {[%emt 0:00:27]} Rb8 {[%emt 0:00:35]} 8. Nge2 {[%emt 0:00:41]} Nd4 {[%emt 0:00:30]} 9. Nd1 {[%emt 0:01:53]} Ne7 {[%emt 0:00:58]} 10. O-O {[%emt 0:01:40]} O-O {[%emt 0:00:55]} 11. Nxd4 cxd4 {[%emt 0:00:41]} 12. Bh6 {[%emt 0:04:18]} b5 {[%emt 0:03:50]} 13. h4 {[%emt 0:07:20]} Qc7 {[%emt 0:06:07]} 14. Bxg7 {[%emt 0:05:13]} Kxg7 {[%emt 0:00:25]} 15. h5 {[%emt 0:12:26]} h6 {[%emt 0:14:58]} 16. hxg6 {[%emt 0:02:45]} fxg6 {[%emt 0:00:27]} 17. Kh2 {[%emt 0:12:55]} Bb7 {[%emt 0:04:31]} 18. Rh1 {[%emt 0:04:47]} Rh8 {[%emt 0:06:17]} 19. Kg1 {[%emt 0:02:30]} Rbf8 {[%emt 0:04:00]} 20. a4 {[%emt 0:05:42]} Ba6 {[%emt 0:06:07]} 21. axb5 {[%emt 0:03:12]} Bxb5 {[%emt 0:00:20]} 22. Qa5 Qxa5 {[%emt 0:00:49]} 23. Rxa5 {[%emt 0:02:25]} a6 {[%emt 0:00:37]} 24. f3 {[%emt 0:08:08]} Rc8 {[%emt 0:01:20]} 25. Bh3 {[%emt 0:02:01]} Rxc2 {[%emt 0:02:09]} 26. Bxe6 {[%emt 0:03:06]} Bxd3 {[%emt 0:01:46]} 27. Bb3 {[%emt 0:05:32]} Rc1 {[%emt 0:03:46]} 28. Kf2 {[%emt 0:02:31]} Rb8 {[%emt 0:03:44]} 29. Ra3 {[%emt 0:02:00]} Rbc8 {[%emt 0:04:32]} 30. Ke1 {[%emt 0:02:32]} Bc2 {[%emt 0:15:50]} 31. Bxc2 {[%emt 0:01:41]} R8xc2 {[%emt 0:00:14]} 32. Rxa6 {[%emt 0:01:02]} d3 {[%emt 0:00:29]} 0-1

[Event "EYCC Girls-U10 2019"]
[Site "Bratislava"]
[Date "2019.08.07"]
[Round "6.14"]
[White "Szarvas, Nora"]
[Black "Kusakina, Uliana"]
[Result "0-1"]
[ECO "C21"]
[WhiteElo "1240"]
[BlackElo "1364"]
[Annotator "NA"]
[PlyCount "64"]
[EventDate "2019.08.02"]
[EventType "swiss"]
[EventCountry "SVK"]
[SourceTitle "playchess.com"]
[Source "ChessBase"]
[SourceQuality "1"]
[TimeControl "40/5400+30:1800+30"]

1. e4 {[%emt 0:00:00]} e5 {[%emt 0:00:00]} 2. d4 {[%emt 0:01:17]} exd4 {[%emt 0:00:00]} 3. c3 {[%emt 0:00:40]} d3 {[%emt 0:02:45]} 4. Bxd3 {[%emt 0:01:21]} Nc6 {[%emt 0:01:40]} 5. Nf3 {[%emt 0:01:08]} Bc5 {[%emt 0:04:59]} 6. Bc4 {[%emt 0:01:25]} Nge7 {[%emt 0:04:20]} 7. Ng5 {[%emt 0:01:40]} Ne5 {[%emt 0:02:47]} 8. Qb3 {[%emt 0:01:53]} O-O {[%emt 0:03:00]} 9. Bf4 {[%emt 0:03:02]} Nxc4 {[%emt 0:00:48]} 10. Qxc4 {[%emt 0:00:22]} d6 {[%emt 0:00:34]} 11. O-O {[%emt 0:01:43]} h6 {[%emt 0:00:45]} 12. Nf3 {[%emt 0:00:22]} Be6 {[%emt 0:02:37]} 13. Qe2 {[%emt 0:03:03]} Ng6 {[%emt 0:03:31]} 14. Be3 {[%emt 0:01:14]} Bb6 {[%emt 0:02:03]} 15. Nd4 {[%emt 0:05:11]} Qd7 {[%emt 0:04:03]} 16. Nxe6 {[%emt 0:02:49]} fxe6 {[%emt 0:00:30]} 17. Bxb6 {[%emt 0:01:23]} axb6 {[%emt 0:00:13]} 18. Qg4 {[%emt 0:00:58]} Ne5 {[%emt 0:01:28]} 19. Qg3 {[%emt 0:00:51]} Rf6 {[%emt 0:02:04]} 20. Rd1 {[%emt 0:05:40]} Qb5 {[%emt 0:01:49]} 21. b3 {[%emt 0:01:15]} Raf8 {[%emt 0:01:54]} 22. Rf1 {[%emt 0:04:52]} Rg6 {[%emt 0:03:57]} 23. c4 {[%emt 0:06:06]} Qe8 {[%emt 0:03:41]} 24. Qe3 {[%emt 0:03:08]} Nf3+ {[%emt 0:00:31]} 25. Kh1 {[%emt 0:00:56]} Rxg2 {[%emt 0:00:25]} 26. Kxg2 {[%emt 0:04:40]} Qg6+ {[%emt 0:00:20]} 27. Kh1 {[%emt 0:00:22]} Qh5 {[%emt 0:00:13]} 28. Qxf3 {[%emt 0:01:05]} Qxf3+ {[%emt 0:00:10]} 29. Kg1 {[%emt 0:00:09]} Rf6 {[%emt 0:00:10]} 30. Rc1 {[%emt 0:00:33]} Qxf2+ {[%emt 0:00:11]} 31. Kh1 {[%emt 0:00:10]} Qf3+ {[%emt 0:00:05]} 32. Kg1 {[%emt 0:00:07]} Rg6# {[%emt 0:00:06]} 0-1